bitfinex-derivatives/quotes_SOLF0:USTF0_20250609
["timestamp","ask_amount","ask_price","bid_price","bid_amount"]
[1749502054456,6.43637635,156.43,156.4,13.98711489]
[1749502054756,5.22370876,156.42,156.4,13.98711489]
[1749502054955,6.43637635,156.43,156.4,13.98711489]
[1749502055662,5.22361201,156.42,156.4,13.98711489]
[1749502057061,6.43637635,156.43,156.4,13.98711489]
[1749502062661,6.43637635,156.43,156.41,6.3899]
[1749502063062,6.43637635,156.43,156.4,7.59701489]
[1749502063263,6.43637635,156.43,156.4,13.98701489]
[1749502063963,0.04707635,156.43,156.41,6.3898]
[1749502064870,6.43627635,156.43,156.4,13.98711489]
[1749502066171,6.43627635,156.43,156.41,6.3898]
[1749502066971,6.43627635,156.43,156.4,13.98721489]
[1749502068771,6.43627635,156.43,156.41,6.3898]
[1749502070173,6.3895,156.42,156.4,13.98711489]
[1749502072171,6.3895,156.42,156.4,7.59701489]
[1749502073279,6.3895,156.42,156.41,4.86292917]
[1749502080682,6.3895,156.42,156.4,6.3903]
[1749502080878,6.3895,156.42,156.41,4.86292917]
[1749502081077,11.6217628,156.42,156.41,4.86292917]
[1749502082586,6.3899,156.41,156.4,4.86292917]
[1749502083787,6.3899,156.41,156.39,37.73969759]
[1749502083984,6.3899,156.41,156.4,4.86292917]
[1749502084183,11.62242839,156.41,156.4,4.86292917]
[1749502086688,11.62242839,156.41,156.39,42.60262676]
[1749502086889,5.23252839,156.4,156.39,42.60262676]
[1749502089494,6.3899,156.41,156.39,42.60262676]
[1749502090996,6.3899,156.41,156.4,4.86292917]
[1749502091295,11.62264252,156.41,156.4,4.86292917]
[1749502093393,10.09567169,156.41,156.39,0.04909759]
[1749502093600,10.09567169,156.4,156.36,37.6519]
[1749502093894,10.09567169,156.39,156.36,6.3919]
[1749502094093,5.96532767,156.41,156.36,11.25482917]
[1749502094094,5.23274252,156.38,156.36,11.25482917]
[1749502094288,4.86292917,156.4,156.36,11.25482917]
[1749502094485,5.23387188,156.39,156.36,11.30179841]
[1749502094688,5.23387188,156.38,156.36,11.30179841]
[1749502094893,6.3907,156.39,156.36,11.30179841]
[1749502095088,5.23438332,156.38,156.36,11.30179841]
[1749502095290,6.3907,156.39,156.36,11.30179841]
[1749502095492,5.23309462,156.38,156.36,0.04696924]
[1749502095694,5.23360105,156.37,156.36,0.04696924]
[1749502095897,10.09653022,156.37,156.36,0.04696924]
[1749502096294,16.48803022,156.37,156.36,0.04696924]
[1749502096493,11.62510105,156.37,156.36,0.04696924]
[1749502099307,6.3915,156.37,156.36,0.04696924]
[1749502102508,11.60317476,156.37,156.36,0.04696924]
[1749502103307,6.3915,156.37,156.36,0.04696924]
[1749502107010,10.06982139,156.37,156.32,31.26]
[1749502107210,4.86292917,156.35,156.32,36.12292917]
[1749502107810,4.86292917,156.35,156.32,31.26]
[1749502108013,4.91181557,156.35,156.32,31.30420232]
[1749502108912,6.393,156.34,156.32,37.69770232]
[1749502110113,11.30441557,156.35,156.32,37.69770232]
[1749502110312,11.30441557,156.35,156.33,6.3931]
[1749502111921,0.0488864,156.35,156.34,11.25572917]
[1749502112820,0.0488864,156.35,156.34,6.3928]
[1749502116015,0.0488864,156.35,156.34,11.25572917]
[1749502130934,0.0488864,156.35,156.34,6.3928]
[1749502131130,0.0488864,156.35,156.34,11.25572917]
[1749502134838,0.0488864,156.35,156.34,6.3928]
[1749502135048,0.0488864,156.35,156.34,11.25572917]
[1749502136342,5.26954314,156.35,156.34,11.25572917]
[1749502140546,5.26954314,156.35,156.32,0.04420232]
[1749502140746,5.22065674,156.34,156.32,4.90713149]
[1749502140946,0.0488864,156.35,156.32,4.90713149]
[1749502141145,11.60990552,156.34,156.32,4.90713149]
[1749502141347,6.3929,156.34,156.32,4.90713149]
[1749502141547,5.21632184,156.33,156.32,4.90713149]
[1749502143249,6.3929,156.34,156.32,4.90713149]
[1749502143852,6.3929,156.34,156.32,0.04420232]
[1749502144150,5.21527495,156.33,156.32,11.30073149]
[1749502144352,6.3929,156.34,156.32,11.30073149]
[1749502144547,5.21492642,156.33,156.32,11.30073149]
[1749502144847,5.21492642,156.33,156.32,4.90713149]
[1749502145052,5.21492642,156.33,156.32,0.04420232]
[1749502145250,5.21492642,156.33,156.32,11.30073149]
[1749502145553,11.60812642,156.33,156.32,0.04420232]
[1749502149647,10.07785559,156.33,156.27,31.26]
[1749502149850,10.07785559,156.32,156.28,4.86292917]
[1749502150156,6.3946,156.3,156.28,4.86292917]
[1749502150356,5.96337259,156.35,156.29,4.86292917]
[1749502150657,6.3965,156.37,156.34,4.86292917]
[1749502150857,5.2002554,156.36,156.35,4.86292917]
[1749502151559,16.02655716,156.36,156.34,0.04544692]
[1749502151757,5.2002554,156.35,156.34,0.04544692]
[1749502151956,11.5926554,156.35,156.34,0.04544692]
[1749502152651,11.5926554,156.35,156.34,4.90837609]
[1749502156158,11.5926554,156.35,156.34,0.04544692]
[1749502156356,16.02655716,156.35,156.3,31.26]
[1749502156548,16.02655716,156.35,156.29,4.86292917]
[1749502156549,4.86292917,156.33,156.29,4.86292917]
[1749502156752,5.2002554,156.32,156.29,11.25752917]
[1749502156952,6.3939,156.32,156.29,11.25752917]
[1749502157257,5.21823045,156.31,156.29,11.30317227]
[1749502157559,6.3942,156.31,156.29,11.30317227]
[1749502158553,6.3944,156.3,156.29,0.0456431]
[1749502159662,16.47197556,156.3,156.29,0.0456431]
[1749502161257,11.59123544,156.3,156.29,0.0456431]
[1749502161960,6.3944,156.3,156.29,0.0456431]
[1749502169365,0.04087064,156.32,156.29,0.0456431]
[1749502169760,0.04087064,156.32,156.29,7.65635808]
[1749502170461,0.04087064,156.32,156.3,6.394]
[1749502171367,6.43447064,156.32,156.29,6.4402431]
[1749502172662,6.3941,156.31,156.29,0.0456431]
[1749502174068,6.43467064,156.32,156.29,6.4403431]
[1749502176875,6.394,156.31,156.29,6.4403431]
[1749502177166,0.04087064,156.32,156.29,6.4403431]
[1749502177564,6.43477064,156.32,156.29,6.4403431]
[1749502177773,0.04087064,156.32,156.29,6.4403431]
[1749502178668,6.394,156.31,156.29,6.4403431]
[1749502179870,6.43467064,156.32,156.29,6.4403431]
[1749502180071,0.04087064,156.32,156.3,6.3943]
[1749502180969,6.43467064,156.32,156.3,6.3943]
[1749502181265,6.43467064,156.32,156.29,6.4402431]
[1749502181672,6.394,156.31,156.29,6.4402431]
[1749502182166,0.04087064,156.32,156.29,6.4402431]
[1749502182366,6.43467064,156.32,156.29,6.4402431]
[1749502183370,6.43467064,156.32,156.3,4.86863298]
[1749502185675,6.43467064,156.32,156.3,11.26303298]
[1749502185977,0.04087064,156.32,156.31,4.86863298]
[1749502187473,6.43447064,156.32,156.31,4.86863298]
[1749502187776,0.04087064,156.32,156.31,11.26263298]
[1749502188477,0.04087064,156.32,156.31,6.394]
[1749502192076,0.04087064,156.32,156.31,11.26263298]
[1749502192376,0.04087064,156.32,156.31,4.86863298]
[1749502192581,6.43447064,156.32,156.3,4.86863298]
[1749502192775,6.43447064,156.32,156.3,11.26293298]
[1749502192974,6.43447064,156.32,156.3,6.3943]
[1749502193179,6.43447064,156.32,156.3,11.26293298]
[1749502195081,6.43447064,156.32,156.31,4.86863298]
[1749502196384,0.04087064,156.32,156.31,4.86863298]
[1749502198883,6.43447064,156.32,156.31,4.86863298]
[1749502199381,0.04087064,156.32,156.3,6.3943]
[1749502201282,6.43457064,156.32,156.3,11.26293298]
[1749502201883,6.43457064,156.32,156.3,6.3943]
[1749502202085,6.43457064,156.32,156.3,11.26293298]
[1749502205288,0.04087064,156.32,156.3,11.26293298]
[1749502205981,0.04087064,156.32,156.31,4.86863298]
[1749502206188,11.65255536,156.32,156.31,4.86863298]
[1749502207491,5.25895536,156.32,156.31,11.26263298]
[1749502207690,0.04087064,156.32,156.31,11.26263298]
[1749502208186,5.26036379,156.32,156.31,11.26263298]
[1749502218600,10.12899677,156.32,156.29,31.3656431]
[1749502218804,5.21949315,156.31,156.29,31.3656431]
[1749502219103,5.21949315,156.3,156.29,31.3656431]
[1749502219304,5.21949315,156.3,156.29,37.7604431]
[1749502222306,5.21949315,156.3,156.29,42.63000998]
[1749502226301,5.21949315,156.3,156.29,36.23520998]
[1749502227308,5.21949315,156.3,156.29,42.63000998]
[1749502230811,0.04087064,156.32,156.31,6.394]
[1749502231014,5.25946845,156.32,156.31,11.26356688]
[1749502233210,0.04087064,156.32,156.31,11.26356688]
[1749502235711,5.26624665,156.32,156.31,11.26356688]
[1749502236817,0.04087064,156.32,156.31,11.26356688]
[1749502242519,5.26442502,156.32,156.31,6.394]
[1749502242720,5.26442502,156.32,156.31,11.26356688]
[1749502246219,5.26442502,156.32,156.31,42.52356688]
[1749502249822,0.04087064,156.32,156.31,42.52356688]
[1749502250225,5.26730802,156.32,156.31,42.52356688]
[1749502251819,0.04087064,156.32,156.31,42.52356688]
[1749502256528,0.04087064,156.32,156.31,37.654]
[1749502256728,0.04087064,156.32,156.31,42.52356688]
[1749502267341,0.04087064,156.32,156.31,31.26]
[1749502267538,10.15186378,156.32,156.31,31.26]
[1749502267741,10.15186378,156.32,156.29,4.91520998]
[1749502268040,5.24142626,156.31,156.29,4.91520998]
[1749502268338,5.24142626,156.3,156.29,11.30960998]
[1749502275349,6.43467064,156.32,156.29,11.30960998]
[1749502275647,5.22378019,156.31,156.29,11.30960998]
[1749502275847,5.22378019,156.3,156.29,11.30960998]
[1749502277053,5.22324017,156.3,156.29,11.30960998]
[1749502277239,5.22302576,156.3,156.29,11.30960998]
[1749502277439,6.43467064,156.32,156.29,11.30960998]
[1749502277646,5.22298335,156.31,156.3,4.86956688]
[1749502279843,11.61698335,156.31,156.3,4.86956688]
[1749502280044,5.22298335,156.31,156.3,4.86956688]
[1749502282250,5.22298335,156.31,156.29,11.31000998]
[1749502282451,5.22298335,156.3,156.29,11.31000998]
[1749502285663,6.43467064,156.32,156.29,11.31000998]
[1749502285856,5.21975353,156.31,156.29,11.31000998]
[1749502286055,6.43467064,156.32,156.29,11.31000998]
[1749502286356,5.2197854,156.31,156.29,11.31000998]
[1749502286560,6.43467064,156.32,156.29,11.31000998]
[1749502286760,5.21973183,156.31,156.29,11.31000998]
[1749502287061,11.30423752,156.32,156.29,11.31000998]
[1749502287359,5.21950874,156.31,156.29,11.31000998]
[1749502287559,11.30423752,156.32,156.29,11.31000998]
[1749502287759,5.21940411,156.31,156.3,6.3944]
[1749502291461,5.21940411,156.31,156.29,11.30990998]
[1749502291662,6.43467064,156.32,156.29,11.30990998]
[1749502291962,5.21895306,156.31,156.29,4.91520998]
[1749502292165,6.43467064,156.32,156.3,6.3944]
[1749502292355,5.21883792,156.31,156.3,11.26396688]
[1749502292555,6.43467064,156.32,156.3,11.26396688]
[1749502293162,5.21663653,156.31,156.3,11.26396688]
[1749502293355,6.43467064,156.32,156.3,11.26396688]
[1749502297373,5.21735942,156.31,156.3,11.26396688]
[1749502297572,5.21749803,156.31,156.3,11.26396688]
[1749502297767,6.43467064,156.32,156.3,11.26396688]
[1749502298572,5.21782479,156.31,156.3,11.26396688]
[1749502299072,6.43467064,156.32,156.3,11.26396688]
[1749502299369,5.21785207,156.31,156.3,11.26396688]
[1749502299574,5.21794692,156.31,156.3,4.86956688]
[1749502301274,5.21794692,156.31,156.29,11.31000998]
[1749502301475,6.43467064,156.32,156.29,11.31000998]
[1749502301675,5.22223192,156.31,156.29,11.31000998]
[1749502301973,6.43467064,156.32,156.29,11.31000998]
[1749502302176,5.22216834,156.31,156.29,11.31000998]
[1749502302371,6.43467064,156.32,156.29,11.31000998]
[1749502302571,5.22234459,156.31,156.29,11.31000998]
[1749502302770,6.43467064,156.32,156.29,11.31000998]
[1749502302974,5.22281293,156.31,156.29,11.31000998]
[1749502303273,6.43467064,156.32,156.29,11.31000998]
[1749502303472,5.22295861,156.31,156.29,11.31000998]
[1749502303673,6.43467064,156.32,156.29,11.31000998]
[1749502303973,5.22330344,156.31,156.29,11.31000998]
[1749502304175,6.43467064,156.32,156.29,11.31000998]
[1749502304368,5.22345572,156.31,156.29,11.31000998]
[1749502304565,6.43467064,156.32,156.29,11.31000998]
[1749502304767,5.22395246,156.31,156.29,11.31000998]
[1749502304972,6.43467064,156.32,156.29,11.31000998]
[1749502305172,5.22395246,156.31,156.29,11.31000998]
[1749502305374,6.43467064,156.32,156.29,11.31000998]
[1749502305569,5.22409747,156.31,156.29,11.31000998]
[1749502305767,6.43467064,156.32,156.29,11.31000998]
[1749502305973,5.22409747,156.31,156.29,11.31000998]
[1749502306170,6.43467064,156.32,156.29,11.31000998]
[1749502306377,5.22485677,156.31,156.29,11.31000998]
[1749502306577,6.43467064,156.32,156.29,11.31000998]
[1749502306772,5.22462473,156.31,156.29,11.31000998]
[1749502306976,6.43467064,156.32,156.29,11.31000998]
[1749502307278,5.22462473,156.31,156.29,11.31000998]
[1749502307574,6.43467064,156.32,156.3,6.3944]
[1749502307773,5.22553838,156.31,156.3,6.3944]
[1749502310880,5.22553838,156.31,156.29,6.4401431]
[1749502311086,5.22553838,156.3,156.29,11.30970998]
[1749502313487,175.00631222,156.39,156.29,11.31017421]
[1749502313685,5.97502797,156.4,156.37,4.86453111]
[1749502313882,5.97502797,156.41,156.39,6.3907]
[1749502314185,2.1184,156.42,156.4,4.86453111]
[1749502314384,2.1184,156.42,156.37,31.26]
[1749502314385,2.2059,156.44,156.41,4.86453111]
[1749502314587,0.04365062,156.44,156.42,11.25403111]
[1749502314892,0.04365062,156.44,156.42,4.86453111]
[1749502317184,0.04365062,156.44,156.42,11.25403111]
[1749502317789,0.04365062,156.44,156.43,11.25363111]
[1749502319395,0.04365062,156.44,156.43,4.86453111]
[1749502324298,6.43235062,156.44,156.41,6.43407919]
[1749502324501,0.04365062,156.44,156.41,0.04437919]
[1749502324891,4.90818173,156.44,156.41,0.04437919]
[1749502325192,6.3891,156.43,156.41,4.9089103]
[1749502325392,4.90818173,156.44,156.41,4.9089103]
[1749502325593,0.04365062,156.44,156.41,4.9089103]
[1749502325998,6.3891,156.43,156.41,4.9089103]
[1749502328194,6.43245062,156.44,156.42,4.86453111]
[1749502328397,6.43245062,156.44,156.43,4.86453111]
[1749502328597,6.43245062,156.44,156.42,4.86453111]
[1749502329495,6.3891,156.43,156.42,4.86453111]
[1749502329698,6.3891,156.43,156.41,4.9089103]
[1749502330598,6.3895,156.42,156.41,4.9089103]
[1749502332096,6.3895,156.42,156.41,0.04437919]
[1749502332595,11.25403111,156.42,156.41,0.04437919]
[1749502334296,6.3915,156.37,156.36,31.24]
[1749502334800,6.3915,156.37,156.34,11.25713111]
[1749502334991,6.3915,156.37,156.35,4.86453111]
[1749502340503,6.43866109,156.38,156.36,4.86453111]
[1749502341905,0.04746109,156.38,156.36,4.86453111]
[1749502342404,0.04746109,156.38,156.36,11.25623111]
[1749502343502,0.04746109,156.38,156.34,0.04029527]
[1749502343503,0.04746109,156.38,156.37,11.25603111]
[1749502344395,0.04746109,156.38,156.37,42.57603111]
[1749502365719,0.04746109,156.38,156.37,31.32]
[1749502366221,0.04746109,156.38,156.37,36.18454642]
[1749502367225,0.04746109,156.38,156.37,42.57604642]
[1749502369224,0.04746109,156.38,156.37,42.57591394]
[1749502371622,0.04746109,156.38,156.37,42.57602278]
[1749502373633,0.04746109,156.38,156.37,11.25602278]
[1749502374535,0.04746109,156.38,156.37,6.3915]
[1749502378536,0.04746109,156.38,156.37,37.7515]
[1749502381036,2.2063,156.43,156.37,31.36]
[1749502381236,2.1807,156.45,156.37,31.36]
[1749502381237,5.17703244,156.42,156.37,31.36]
[1749502381431,6.3884,156.45,156.41,4.86268409]
[1749502381632,10.03999386,156.44,156.41,31.36]
[1749502381827,4.86268409,156.42,156.32,16.19877393]
[1749502382134,5.17730977,156.43,156.32,16.19877393]
[1749502382135,0.04408977,156.39,156.37,11.25398409]
[1749502382535,0.04408977,156.39,156.37,4.86268409]
[1749502382744,0.04408977,156.39,156.36,11.25458409]
[1749502382939,4.90677386,156.39,156.36,11.25458409]
[1749502383334,5.16991403,156.38,156.36,11.25458409]
[1749502383540,6.43498977,156.39,156.36,11.25458409]
[1749502383740,5.17027532,156.38,156.36,11.25458409]
[1749502383942,6.43498977,156.39,156.36,11.25458409]
[1749502384137,5.17027359,156.38,156.36,11.25458409]
[1749502384333,6.43498977,156.39,156.36,11.25458409]
[1749502384537,5.1702467,156.38,156.36,11.25458409]
[1749502384843,6.43498977,156.39,156.36,11.25458409]
[1749502385140,5.1701061,156.38,156.36,11.25458409]
[1749502385344,6.43498977,156.39,156.36,11.25458409]
[1749502385642,5.17175867,156.38,156.36,11.25458409]
[1749502385842,6.43498977,156.39,156.36,11.25458409]
[1749502386138,5.17178539,156.38,156.36,11.25458409]
[1749502386445,6.43498977,156.39,156.36,11.25458409]
[1749502386646,5.17240185,156.38,156.36,11.25458409]
[1749502386941,6.43498977,156.39,156.36,11.25458409]
[1749502387135,5.17241169,156.38,156.36,11.25458409]
[1749502387332,6.43498977,156.39,156.36,11.25458409]
[1749502387536,5.17285835,156.38,156.36,11.25458409]
[1749502387741,6.3914,156.38,156.35,11.29883223]
[1749502388846,5.17346627,156.37,156.35,11.29883223]
[1749502389037,6.3914,156.38,156.35,11.29883223]
[1749502389234,5.17376905,156.37,156.35,11.29883223]
[1749502389437,6.3914,156.38,156.35,11.29883223]
[1749502389741,5.17370515,156.37,156.35,11.29883223]
[1749502389940,6.3914,156.38,156.35,11.29883223]
[1749502390143,5.17329617,156.37,156.35,11.29883223]
[1749502390340,6.3914,156.38,156.35,11.29883223]
[1749502390535,5.17297291,156.37,156.35,11.29883223]
[1749502390739,6.3914,156.38,156.35,11.29883223]
[1749502391044,5.17287641,156.37,156.35,11.29883223]
[1749502391342,6.3914,156.38,156.35,11.29883223]
[1749502391641,5.16461073,156.37,156.35,11.29883223]
[1749502391842,6.3914,156.38,156.36,6.3919]
[1749502392031,5.16364016,156.37,156.36,11.25458409]
[1749502392842,5.16364016,156.37,156.36,6.3919]
[1749502393044,5.16364016,156.37,156.36,11.25458409]
[1749502394744,11.29757386,156.39,156.36,11.25458409]
[1749502394946,5.16311695,156.38,156.36,11.25458409]
[1749502395142,5.16311695,156.37,156.36,11.25458409]
[1749502402352,5.16311695,156.37,156.36,6.3919]
[1749502403952,5.16311695,156.37,156.36,11.25458409]
[1749502407757,5.16311695,156.37,156.36,6.3919]
[1749502409458,11.55471695,156.37,156.35,4.90663223]
[1749502409658,5.16311695,156.36,156.35,0.04394814]
[1749502410050,5.16311695,156.36,156.35,6.43634814]
[1749502411255,11.25398409,156.38,156.35,6.43634814]
[1749502411461,5.1605545,156.37,156.35,6.43634814]
[1749502411657,5.1605545,156.36,156.35,6.43634814]
[1749502412458,5.1605545,156.36,156.35,0.04394814]
[1749502413164,5.1605545,156.36,156.35,6.43634814]
[1749502414563,5.1605545,156.36,156.35,11.29903223]
[1749502416364,6.3913,156.38,156.35,11.29903223]
[1749502416571,5.15982125,156.37,156.36,11.25468409]
[1749502417160,6.43508977,156.39,156.36,4.86268409]
[1749502417361,5.15642344,156.38,156.37,4.86268409]
[1749502417964,5.15642344,156.38,156.37,11.25418409]
[1749502418863,5.15642344,156.38,156.36,6.3918]
[1749502419068,11.29777386,156.39,156.36,6.3918]
[1749502419259,5.15681766,156.38,156.36,6.3918]
[1749502419457,11.29777386,156.39,156.36,6.3918]
[1749502419663,5.15692007,156.38,156.36,6.3918]
[1749502419863,11.29777386,156.39,156.36,6.3918]
[1749502420165,5.15694108,156.38,156.36,6.3918]
[1749502420368,11.29777386,156.39,156.36,6.3918]
[1749502420561,5.15701197,156.38,156.36,6.3918]
[1749502420760,11.29777386,156.39,156.36,6.3918]
[1749502420965,5.15718838,156.38,156.36,6.3918]
[1749502421161,11.29777386,156.39,156.36,6.3918]
[1749502421362,5.15897386,156.38,156.36,6.3918]
[1749502421566,11.29777386,156.39,156.36,6.3918]
[1749502421866,5.16465269,156.38,156.36,6.3918]
[1749502422168,11.29777386,156.39,156.36,6.3918]
[1749502422366,5.16444017,156.38,156.36,6.3918]
[1749502422567,11.29777386,156.39,156.37,6.3915]
[1749502422871,5.16462849,156.38,156.37,6.3915]
[1749502427173,5.16462849,156.38,156.37,11.25418409]
[1749502436979,0.04408977,156.39,156.38,6.3911]
[1749502437180,5.20764328,156.39,156.38,11.25378409]
[1749502438084,0.04408977,156.39,156.38,11.25378409]
[1749502443892,10.83951456,156.46,156.38,4.86268409]
[1749502444090,5.1580858,156.45,156.42,4.86268409]
[1749502444289,5.1580858,156.44,156.42,11.25198409]
[1749502444595,5.1580858,156.43,156.42,11.25198409]
[1749502446991,0.04090806,156.44,156.43,6.3891]
[1749502447295,5.20144756,156.44,156.43,11.25178409]
[1749502448290,0.04090806,156.44,156.43,11.25178409]
[1749502448487,5.19859832,156.44,156.43,11.25178409]
[1749502448688,0.04090806,156.44,156.43,11.25178409]
[1749502449997,0.04090806,156.44,156.42,6.3893]
[1749502450203,0.04090806,156.44,156.43,4.86268409]
[1749502450396,5.18905764,156.44,156.43,4.86268409]
[1749502450598,0.04090806,156.44,156.43,4.86268409]
[1749502451697,0.04090806,156.44,156.43,11.25178409]
[1749502459599,0.04090806,156.44,156.43,6.3891]
[1749502459904,0.04090806,156.44,156.43,11.25178409]
[1749502468315,5.14960538,156.48,156.47,6.3875]
[1749502468508,5.14960538,156.48,156.47,11.25018409]
[1749502469013,5.14960538,156.48,156.45,36.26268409]
[1749502469209,0.04580181,156.48,156.45,36.30612542]
[1749502469615,6.43290181,156.48,156.45,42.69412542]
[1749502469815,4.9084859,156.48,156.45,31.44344133]
[1749502470116,11.25058409,156.46,156.45,0.04344133]
[1749502470317,16.40013804,156.46,156.45,0.04344133]
[1749502475216,11.53745395,156.46,156.45,0.04344133]
[1749502475425,16.40013804,156.46,156.45,0.04344133]
[1749502478219,11.53745395,156.46,156.45,0.04344133]
[1749502478426,16.40013804,156.46,156.45,0.04344133]
[1749502484028,5.14955395,156.46,156.45,0.04344133]
[1749502485328,5.14955395,156.46,156.45,11.29442542]
[1749502485534,5.15741068,156.46,156.45,4.90612542]
[1749502486626,5.15741068,156.46,156.45,11.29442542]
[1749502487133,5.15741068,156.46,156.45,0.04344133]
[1749502488437,11.54531068,156.46,156.45,0.04344133]
[1749502489535,5.15741068,156.46,156.45,0.04344133]
[1749502489736,5.15741068,156.46,156.45,4.90612542]
[1749502490833,5.14815437,156.46,156.45,4.90612542]
[1749502492738,11.53605437,156.46,156.45,4.90612542]
[1749502493140,11.53605437,156.46,156.45,0.04344133]
[1749502498344,16.39873846,156.46,156.45,0.04344133]
[1749502498544,22.37659019,156.46,156.45,0.04344133]
[1749502498746,16.39873846,156.46,156.45,0.04344133]
[1749502499146,22.37659019,156.46,156.45,0.04344133]
[1749502499347,16.39873846,156.46,156.45,0.04344133]
[1749502499646,22.37659019,156.46,156.45,0.04344133]
[1749502500446,16.39873846,156.46,156.45,0.04344133]
[1749502500946,11.53605437,156.46,156.45,0.04344133]
[1749502501149,16.39873846,156.46,156.45,0.04344133]
[1749502501849,22.37659019,156.46,156.45,0.04344133]
[1749502505654,15.98869019,156.46,156.4,4.86268409]
[1749502505855,4.86268409,156.44,156.41,4.86268409]
[1749502506154,5.14815437,156.43,156.41,4.86268409]
[1749502506354,5.14815437,156.42,156.41,4.86268409]
[1749502507644,5.14815437,156.42,156.41,11.25258409]
[1749502508351,6.43059167,156.43,156.41,11.25258409]
[1749502508550,5.14616448,156.42,156.41,11.25258409]
[1749502508951,6.43059167,156.43,156.41,11.25258409]
[1749502509153,5.14618535,156.42,156.41,11.25258409]
[1749502510263,5.14618535,156.42,156.4,6.43511746]
[1749502510555,6.43059167,156.43,156.41,4.86268409]
[1749502510754,5.14623264,156.42,156.41,4.86268409]
[1749502511758,5.14623264,156.42,156.41,11.25258409]
[1749502512260,0.04129167,156.43,156.41,4.86268409]
[1749502512452,0.04129167,156.43,156.4,0.04501746]
[1749502512647,5.16436758,156.42,156.4,0.04501746]
[1749502512850,5.16436758,156.41,156.4,0.04501746]
[1749502513047,5.16436758,156.41,156.4,4.90770155]
[1749502513255,5.16436758,156.41,156.4,11.29800155]
[1749502513449,5.16436758,156.41,156.4,4.90770155]
[1749502513655,5.16436758,156.41,156.4,0.04501746]
[1749502513850,5.16436758,156.41,156.4,11.29800155]
[1749502515256,0.04129167,156.43,156.4,11.29800155]
[1749502515458,5.12298113,156.42,156.41,4.86268409]
[1749502515860,0.04129167,156.43,156.41,11.25258409]
[1749502516059,0.04129167,156.43,156.42,4.86268409]
[1749502516262,0.04129167,156.43,156.42,11.25218409]
[1749502517255,0.04129167,156.43,156.42,13.98355541]
[1749502519752,5.97580967,156.49,156.48,6.3871]
[1749502519953,5.11251308,156.49,156.48,6.3871]
[1749502520554,5.11251308,156.49,156.47,13.98135541]
[1749502520861,6.42727631,156.5,156.47,13.98135541]
[1749502521162,5.11066812,156.49,156.47,13.98135541]
[1749502521354,0.04097631,156.5,156.47,13.98135541]
[1749502521559,5.11722765,156.49,156.47,13.98135541]
[1749502521758,0.04097631,156.5,156.47,13.98135541]
[1749502521954,5.11976782,156.49,156.47,13.98135541]
[1749502522156,6.42747631,156.5,156.47,13.98135541]
[1749502522356,5.11836477,156.49,156.47,13.98135541]
[1749502522658,6.42747631,156.5,156.47,13.98135541]
[1749502522964,5.11828182,156.49,156.47,13.98135541]
[1749502523158,6.42747631,156.5,156.48,6.387]
[1749502523358,5.11700716,156.49,156.48,6.387]
[1749502523764,5.11700716,156.49,156.47,13.98135541]
[1749502523964,6.3867,156.49,156.47,13.98135541]
[1749502524966,6.3867,156.49,156.46,38.39366002]
[1749502526266,5.11580328,156.48,156.46,38.39366002]
[1749502526465,6.3871,156.48,156.46,38.39366002]
[1749502527567,5.12690168,156.49,156.47,6.3874]
[1749502527760,0.04097631,156.5,156.47,6.3874]
[1749502527962,5.12673836,156.49,156.47,6.3874]
[1749502528167,0.04097631,156.5,156.47,6.3874]
[1749502529070,6.3869,156.49,156.47,6.3874]
[1749502529275,6.3869,156.49,156.46,45.98781543]
[1749502529570,6.3867,156.49,156.46,39.60001543]
[1749502530273,6.3867,156.49,156.46,32.00596002]
[1749502530470,6.3867,156.49,156.46,39.60001543]
[1749502530772,6.3867,156.49,156.46,45.98751543]
[1749502533970,6.3867,156.49,156.47,6.3874]
[1749502536672,0.04097631,156.5,156.46,45.98771543]
[1749502536873,0.04097631,156.5,156.46,32.00596002]
[1749502537081,0.04097631,156.5,156.4,31.96]
[1749502537082,18.69319884,156.49,156.4,31.96]
[1749502537279,7.59405541,156.47,156.41,6.3897]
[1749502537478,6.389,156.44,156.41,6.3897]
[1749502538081,6.43298444,156.44,156.42,6.3895]
[1749502538282,6.43298444,156.44,156.41,0.04169471]
[1749502538584,0.04398444,156.44,156.41,0.04169471]
[1749502538782,0.04398444,156.44,156.42,7.59405541]
[1749502539383,0.04398444,156.44,156.43,6.3891]
[1749502557699,5.12743024,156.49,156.47,6.3872]
[1749502558000,5.12743024,156.48,156.45,7.59405541]
[1749502558200,12.9545,156.5,156.47,6.3873]
[1749502558403,5.1298562,156.49,156.47,6.3873]
[1749502558601,5.1298562,156.48,156.47,6.3873]
[1749502561406,11.5169562,156.48,156.46,0.04166161]
[1749502561608,5.1298562,156.47,156.46,0.04166161]
[1749502562003,11.5173562,156.47,156.46,0.04166161]
[1749502562211,5.1298562,156.47,156.41,31.88]
[1749502562507,11.5179562,156.46,156.43,6.3889]
[1749502562711,5.1298562,156.45,156.43,6.3889]